{"text_format":"1","workbook":"xlsx","n_sheets":7,"sheets":["Start","Adresse","Eckwerte","Datenerfassung","Belegetext","Rechnung","Berechnung"],"not_rendered":{"charts":0,"images":0,"macros":1,"external_links":0,"defined_names":0,"comments":1,"pivot_tables":0},"unopened":[],"bounds":{"document_bytes":16777216,"sheet_cells":100000,"rows_first":2000,"rows_last":500,"rows_between":2000,"halvings":0,"cell_chars":16384,"cell_head_chars":4096},"cells_cut":0,"cells_raw":0,"read":"whole","date_system":"1900"}

{"sheet":"Start","index":0,"n_rows":29,"n_cols":2,"rows_kept":29,"cut":false,"hidden":false,"merged":[[0,1,1,2],[4,1,4,7],[20,2,20,7],[22,1,22,7],[3,1,3,7]]}
[null,"Bildungs- und Kulturdirektion des Kantons Bern"]
[]
[]
[null,"Berechnung Elterngebühren"]
[null,"Tagesschule"]
[]
[]
[]
[]
[]
[]
[]
[]
[]
[]
[]
[]
[]
[]
[]
[]
[null,"Kontakt: Camille Cuvit, 031 636 59 36, camille.cuvit@be.ch "]
[]
[]
[]
[]
[]
[]
[null,"Version 1.1/2024"]

{"sheet":"Adresse","index":1,"n_rows":21,"n_cols":3,"rows_kept":21,"cut":false,"hidden":false,"merged":[[0,0,0,3],[1,0,1,3],[2,0,3,3],[10,1,10,3],[4,1,4,2]]}
[]
[]
[{"$f":"\"Adresse \"&Start!B5","v":"Adresse Tagesschule"}]
[]
[]
[null,"Beispiel","Adresse"]
[null,"Name Institution","Tagesschule Muster"]
[null,"Strasse","Finkenrain 12"]
[null,"PLZ und Ort","3013 Bern"]
[null,"Telefon","031 000 00 00"]
[]
[null,"Leitung","Vorname Name"]
[null,null,"Stefanie Küng"]
[]
[]
[null,"Kontaktperson Rechnung"]
[null,"Vorname Name","Elisabeth Adam"]
[null,"Strasse","Finkenrain 12"]
[null,"PLZ und Ort","3013 Bern"]
[null,"Telefon für Rücksprache","031 000 00 00"]
[null,"E-Mail für Rücksprache","xx@xx"]

{"sheet":"Eckwerte","index":2,"n_rows":26,"n_cols":4,"rows_kept":26,"cut":false,"hidden":false,"merged":[[24,1,24,2],[25,1,25,2],[0,0,1,4],[18,1,18,2],[14,1,15,3],[13,1,13,3],[4,1,5,2],[16,1,16,2],[4,3,5,3],[2,1,2,3],[21,1,21,2],[22,1,22,2],[23,1,23,2]]}
[{"$f":"\"Eckwerte \"  & Start!B5","v":"Eckwerte Tagesschule"}]
[]
[]
[]
[null,"Eckwerte",null,"CHF"]
[]
[null,"Gebühr / Stunde","maximal",12.86]
[null,"Gebühr / Stunde","minimal",0.82]
[null,"Massgebendes Jahreseinkommen","maximal",160000]
[null,"Massgebendes Jahreseinkommen","minimal",43000]
[null,"Familienrabatt","Anzahl",1.07]
[null,"Verpflegungskosten",null,0]
[]
[]
[null,"Betreuungsangebot"]
[]
[null,"Betreuungsstunden / Tag maximal",null,7]
[null,"maximale Anzahl Betreuungstage pro Jahr",null,195]
[null,"maximale Anzahl Betreuungsstunden pro Tag",null,8]
[]
[]
[null,"Abzug für Familiengrösse",null,"CHF"]
[null,"bei einer Familiengrösse von 3 Personen pauschal",null,3800]
[null,"bei einer Familiengrösse von 4 Personen pauschal",null,6000]
[null,"bei einer Familiengrösse von 5 Personen pauschal",null,7000]
[null,"bei einer Familiengrösse von 6 Personen pauschal",null,7700]

{"sheet":"Datenerfassung","index":3,"n_rows":92,"n_cols":19,"rows_kept":92,"cut":false,"hidden":false,"merged":[[10,1,20,2],[68,3,68,8],[53,7,53,8],[18,3,18,4],[14,3,14,4],[17,3,17,4],[54,7,54,8],[15,3,15,4],[49,3,49,5],[47,3,47,6],[53,5,53,6],[45,3,45,6],[27,3,27,6],[28,3,28,6],[50,3,50,4],[56,3,56,4],[56,7,56,8],[74,3,74,8],[73,3,73,8],[72,3,72,8],[65,3,65,4],[59,3,59,6],[60,3,60,6],[61,3,61,6],[64,3,64,6],[62,3,62,6],[63,3,63,6],[7,10,7,11],[8,10,8,11],[16,3,16,4],[7,7,7,8],[8,7,8,8],[10,3,11,4],[7,5,7,6],[12,3,12,6],[13,3,13,6],[8,5,8,6],[25,1,28,1],[30,3,30,6],[55,7,55,8],[29,3,29,6],[34,3,34,6],[52,7,52,8],[54,5,54,6],[52,5,52,6],[22,1,24,1],[44,3,44,6],[42,3,42,6],[23,3,24,6],[25,3,25,6],[55,5,55,6],[22,2,24,2]]}
[null,null,null,{"$f":"\"Datenerfassung \"&Start!B5","v":"Datenerfassung Tagesschule"}]
[null,null,null,"Personalien"]
[null,null,null,"Anrede","Familie"]
[null,null,null,"Antragsteller/in I (Vorname  / Name)","Fränzi Muster"]
[null,null,null,"Antragsteller/in II (Vorname / Name)","Hans Muster"]
[null,null,null,"Kind (Vorname / Name)"]
[null,null,null,"Geburtsdatum Kind"]
[null,null,null,"Rechnungsadresse / Name",{"$f":"E4","v":"Fränzi Muster"},"Strasse",null,"Mustergasse 11",null,"PLZ und Ort","3600 Thun"]
[null,null,null,"Familienadresse / Name\n(falls nicht Rechnungsadresse)",null,"Strasse",null,null,null,"PLZ und Ort"]
[]
[null,"Positionsnummer Steuern",null,"Allgemeine Angaben zur Berechnung"]
[null,null,null,null,null,null,null,null,0]
[null,null,null,"Familiengrösse gemäss Tagesschulverordnung Artikel 14\n(Antragstellende + Kinder der Antragstellenden)",null,null,null,4,{"$f":"IF(H13<=1,\"Familiengrösse muss grösser 1 sein\",\"\")","v":""}]
[null,null,null,"Gewichtete Anzahl der Familienmitglieder\n(Kinder mit geteilter Obhut werden mit 0.5 gerechnet)",null,null,null,4]
[null,null,null,"Gebühren pro Mittagessen und Anzahl pro Woche",null,8,"Anz.",1,{"$f":"IF(H15=0,0,F15*H15)","v":8},null,null,null,null,5,{"$f":"N15*H22","v":15}]
[null,null,null,"Gebühren pro Frühstück und Anzahl pro Woche",null,1,"Anz.",1,{"$f":"IF(H16=0,0,F16*H16)","v":1}]
[null,null,null,"Gebühren pro z'Vieri und Anzahl pro Woche",null,1.5,"Anz.",1,{"$f":"IF(H17=0,0,F17*H17)","v":1.5},null,null,null,null,"Betreuungsstunden Pro Tag","Max Betreuung"]
[null,null,null,"Betreuungsstunden pro Woche",null,null,"h",1,{"$f":"IF((H18*H22)-P21>O22,\"Eingabe ist zu hoch\",((H18*H22)-P21))","v":3},{"$f":"IF(H18<=0,\"Bitte Betreuungsstunden erfassen\",\"\")","v":""},null,null,null,{"$f":"Eckwerte!D19","v":8},40]
[null,null,null,"Abrechnungsperiode für Berechnung",null,null,"Dat.","2024-01-08","2024-01-30",{"$f":"IF(OR(H19<=0,I19<=0),\"Bitte Abrechnungsperiode erfassen\",\"\")","v":""}]
[null,null,null,"Anzahl Ferienwochen in Abrechnungsperiode",null,"Abzug","Wo.",0]
[null,null,null,"Anzahl ausfallende Betreuungsstunden in Abrechnungsperiode (z. B. Sporttag, Karfreitag usw.)",null,"Abzug","h",0,null,null,null,null,null,"Abzug Betreuungsstunden",null,{"$f":"H21","v":0}]
[null,null,null,"Anzahl Schulwochen in Abrechnungsperiode",null,null,"Wo.",{"$f":"ROUND((I19-H19)/P23,0)-H20","v":3},null,null,null,null,null,null,{"$f":"O18*H22","v":120},{"$f":"H20","v":0}]
[null,"Formular","Ziffer",null,null,null,null,null,null,null,null,null,null,"Tage in Wochen",null,7]
[null,null,null,"Grunddaten zur Berechnung (basierend auf dem Vorjahr)\nEinkünfte aus unselbständiger und selbständiger Erwerbstätigkeit"]
[null,null,null,null,null,null,null,"Antragsteller/in I","Antragsteller/in II"]
[null,2,2.21,"Nettolohn",null,null,null,50000,60000]
[null,null,2.25,"weitere steuerbare Einkünfte",null,null,null,500,50]
[null,null,"2.22/2.23","Ersatzeinkommen",null,null,null,600,60]
[null,null,2.2400000000000002,"erhaltene Unterhaltsbeiträge",null,null,null,700,70,null,null,"Eingabefeld"]
[null,"9/10/8","9210/9210/8.1/8.2","Geschäftsgewinn - Durchschnitt der letzten 3 Jahre",null,null,null,800,80,null,null,"Berechnung"]
[null,"3\n7\n","31 minus 53\n7.1","Bruttoerträge aus beweglichem und unbeweglichem Vermögen",null,null,null,900,90]
[null,"8",8.3000000000000007,"Einkommen aus Erbengemeinschaften/Miteingentümerschaften",null,null,null,1000,100]
[null,"5","5.1","Abzug für geleistete Unterhaltsbeiträge",null,null,null,1100,110]
[null,"4",4.3,"Schuldzinsen (Zinsen)",null,null,null,1200,120]
[null,"3\n7","51\n7.2","Kosten für die Wertschriftenverwaltung und Grundstückskosten",null,null,null,1300,130]
[null,null,null,"Weitere Einkünfte",null,null,null,0,0,null,null,null,null,"Lohn",{"$f":"IF(I46>100000,ROUND(((I46-100000)*5%/12)*20,0)/20,0)","v":0},{"$f":"SUM(H29:H36)+H26","v":57000},{"$f":"SUM(I29:I36)+I26","v":60700}]
[null,null,null,null,null,null,null,null,null,null,null,null,null,null,null,{"$f":"H28","v":600},{"$f":"I28","v":60}]
[null,null,null,"Einkommen aus selbständiger Erwerbstätigkeit"]
[null,9,9210,"In der Steuererklärung ausgewiesener  Geschäftsgewinn (Durchschnitt der vergangenen drei Jahre)",null,null,null,null,null,null,null,null,null,null,null,{"$f":"SUM(P36:P37)","v":57600},{"$f":"SUM(Q36:Q37)","v":60760}]
[]
[]
[]
[null,null,null,"Total",null,null,null,{"$f":"SUM(H26:H32)-H33-H34-H35","v":50900},{"$f":"SUM(I26:I32)-I33-I34-I35","v":60090}]
[null,null,null,null,null,null,null,null,null,null,null,null,null,"Vermögen",null,{"$f":"H46","v":40000},{"$f":"I46","v":10000}]
[null,null,null,"Nettovermögen",null,null,null,null,null,null,null,null,null,null,null,{"$f":"ROUND((H46*$F$47)*20,0)/20","v":2000},{"$f":"ROUND((I46*$F$47)*20,0)/20","v":500}]
[null,"3\n4\n4\n7\n4\n8","32 minus 53\n4.1\n4.2\n7.0\n4.3\n8.3","Nettovermögen",null,null,null,40000,10000,null,null,null,null,null,null,null,{"$f":"IF((P45+Q45)>0,P45+Q45,0)","v":2500}]
[null,null,null,"Berechnung ",null,0.05,null,{"$f":"H46*F47","v":2000},{"$f":"I46*H47","v":20000000}]
[null,null,null,"Davon 5%",null,null,null,{"$f":"P45","v":2000},{"$f":"Q45","v":500}]
[null,null,null,null,null,null,null,null,null,null,null,null,null,null,null,null,"Total"]
[null,null,null,"Abzüge",null,null,null,null,null,null,null,null,null,"Abzüge",{"$f":"H51","v":0},{"$f":"I51","v":0},{"$f":"SUM(O50:P50)","v":0}]
[null,5,5.0999999999999996,"Bezahlte Unterhaltsbeiträge",null,null,null,0,0,null,null,null,null,null,null,3,{"$f":"H53","v":""}]
[]
[null,null,null,"bei einer Familiengrösse von drei Personen pauschal pro Person",null,3800,null,{"$f":"IF($H$13=3,F53*H14,\"\")","v":""},null,null,null,null,null,null,null,4,{"$f":"H54","v":24000}]
[null,null,null,"bei einer Familiengrösse von vier Personen pauschal pro Person",null,6000,null,{"$f":"IF($H$13=4,F54*H14,\"\")","v":24000},null,null,null,null,null,null,null,5,{"$f":"H55","v":""}]
[null,null,null,"bei einer Familiengrösse von fünf Personen pauschal pro Person",null,7000,null,{"$f":"IF($H$13=5,F55*H14,\"\")","v":""},null,null,null,null,null,null,null,{"$f":"H13","v":4},{"$f":"H56","v":""}]
[null,null,null,"bei einer Familiengrösse ab sechs Personen pauschal pro Person",null,7700,null,{"$f":"IF($H$13>=6,F56*H14,\"\")","v":""},null,null,null,null,null,null,null,"Gesamttotal",{"$f":"SUM(Q50:Q55)","v":24000}]
[null,null,null,"Total Abzüge",null,null,null,{"$f":"IF(Q56=\"\",0,Q56)","v":24000}]
[null,null,null,null,null,null,null,null,null,null,null,null,null,null,null,"E K"]
[null,null,null,"Zusammenzug",null,null,null,null,null,null,null,null,null,null,null,{"$f":"H43","v":50900},{"$f":"I43","v":60090}]
[null,null,null,"Einkünfte",null,null,null,{"$f":"IF(P64=\"\",\"\",P64)","v":50900},{"$f":"IF(Q64=\"\",\"\",Q64)","v":60090},{"$f":"SUM(H60:I60)","v":110990},null,null,null,null,null,0,0]
[null,null,null,"5% des Nettovermögens",null,null,null,null,null,{"$f":"Q46","v":2500}]
[null,null,null,"Abzug bezahlte Unterhaltsbeiträge",null,null,null,null,null,{"$f":"Q50","v":0}]
[null,null,null,"Zwischentotal (Einkünfte und Vermögen)",null,null,null,null,null,{"$f":"J60+J61","v":113490}]
[null,null,null,"Abzüge für Familiengrösse",null,null,null,null,null,{"$f":"R69","v":24000},null,null,null,null,"EK",{"$f":"SUM(P59:P61)","v":50900},{"$f":"SUM(Q59:Q61)","v":60090},{"$f":"SUM(P64:Q64)","v":110990},{"$f":"R64","v":110990}]
[null,null,null,"Massgebendes Einkommen",null,null,null,null,null,{"$f":"J63-J64","v":89490},null,null,null,null,"Abzüge UB",null,{"$f":"H51","v":0},{"$f":"I51","v":0},{"$f":"SUM(Q65:R65)","v":0}]
[null,null,null,"Massgebendes monatliches Einkommen",null,null,null,null,null,{"$f":"R74","v":0}]
[null,null,null,null,null,null,null,null,null,null,null,null,null,null,"Vermögen",null,null,null,{"$f":"J61","v":2500}]
[null,null,null,null,null,null,null,null,null,null,null,null,null,null,null,null,null,null,{"$f":"S64-S65+S67","v":113490}]
[null,null,null,"Gebühr pro Stunde",null,null,null,null,null,{"$f":"ROUND(IF($J$65<=Eckwerte!$D$10,Eckwerte!$D$8,IF($J$65>=Eckwerte!$D$9,Eckwerte!$D$7,((Eckwerte!D7-Eckwerte!D8)/(Eckwerte!D9-Eckwerte!D10)*($J$65-Eckwerte!D10)+Eckwerte!D8))),2)","v":5.6},null,null,null,null,"Abzüge",null,null,{"$f":"SUM(H53:I56)","v":24000}]
[null,null,null,"Maximaltarif",null,null,null,null,null,{"$f":"Eckwerte!D7","v":12.86},null,null,null,null,null,null,null,{"$f":"S68-R69","v":89490}]
[null,null,null,"Subvention Kanton und Gemeinde pro Betreuungsstunde",null,"hier löschen.",null,null,null,{"$f":"J70-J69","v":7.26}]
[null,null,null,"Betreuungsstunden für Abrechnungsperiode",null,null,null,null,null,{"$f":"I18","v":3}]
[null,null,null,"Betreuungsgebühr für Abrechnungsperiode",null,null,null,null,null,{"$f":"ROUND((J87)*20,0)/20","v":16.8}]
[null,null,null,"Verpflegungsgebühr",null,null,null,null,null,{"$f":"IF(SUM(I15:I17)=\"\",\"\",SUM(I15:I17)*H22)","v":31.5}]
[null,null,null,"Betreuungs- und Mahlzeitengebühren für Abrechnungsperiode ",null,null,null,null,null,{"$f":"SUM(J73:J74)","v":48.3}]
[]
[null,null,null,"Einmalige individuelle Gutschriften oder Belastungen können direkt in der Rechnung eingegeben werden."]
[]
[]
[]
[]
[null,null,null,null,null,null,null,{"$f":"(Eckwerte!D7-Eckwerte!D8)/(Eckwerte!D9-Eckwerte!D10)*(Datenerfassung!J65-Eckwerte!D10)+Eckwerte!D8","v":5.6040991452991458},"=(Eckwerte!D7-Eckwerte!D8)/(Eckwerte!D9-Eckwerte!D10)*(Datenerfassung!H52-Eckwerte!D10)+Eckwerte!D8"]
[null,null,null,null,null,null,null,{"$f":"E92","v":5.6040991452991458}]
[null,null,"FG",null,null,null,null,{"$f":"IF(H83<=Eckwerte!D8,(Eckwerte!D8),IF(H83>=Eckwerte!D7,(Eckwerte!D7),(Datenerfassung!H83)))","v":5.6040991452991458},{"$f":"H85","v":5.6040991452991458}]
[null,null,2,{"$f":"IF(((Eckwerte!$D$7-Eckwerte!$D$8)/(Eckwerte!$D$9-Eckwerte!$D$10)*(Datenerfassung!$J$63-Eckwerte!$D$10)+Eckwerte!$D$8)<=Eckwerte!$D$8,Eckwerte!$D$8,IF(((Eckwerte!$D$7-Eckwerte!$D$8)/(Eckwerte!$D$9-Eckwerte!$D$10)*(Datenerfassung!$J$63-Eckwerte!$D$10)+Eckwerte!$D$8)>=Eckwerte!$D$7,Eckwerte!$D$7,((Eckwerte!$D$7-Eckwerte!$D$8)/(Eckwerte!$D$9-Eckwerte!$D$10)*(Datenerfassung!$J$63-Eckwerte!$D$10)+Eckwerte!$D$8)))","v":8.0738427350427351},{"$f":"IF(C85=$H$13,D85,0)","v":0},null,null,{"$f":"IF(H84=Eckwerte!D8,Eckwerte!D8,H84)","v":5.6040991452991458}]
[null,null,3,{"$f":"IF(((Eckwerte!$D$7-Eckwerte!$D$8)/(Eckwerte!$D$9-Eckwerte!$D$10)*(Datenerfassung!$J$63-C86*F53-Eckwerte!$D$10)+Eckwerte!$D$8)<=Eckwerte!$D$8,Eckwerte!$D$8,IF(((Eckwerte!$D$7-Eckwerte!$D$8)/(Eckwerte!$D$9-Eckwerte!$D$10)*(Datenerfassung!$J$63-C86*F53-Eckwerte!$D$10)+Eckwerte!$D$8)>=Eckwerte!$D$7,Eckwerte!$D$7,((Eckwerte!$D$7-Eckwerte!$D$8)/(Eckwerte!$D$9-Eckwerte!$D$10)*(Datenerfassung!$J$63-C86*F53-Eckwerte!$D$10)+Eckwerte!$D$8)))","v":6.9007145299145298},{"$f":"IF(C86=$H$13,D86,0)","v":0},null,null,{"$f":"(H85*$H$18)","v":5.6040991452991458},{"$f":"(I84*$H$18)","v":5.6040991452991458}]
[null,null,4,{"$f":"IF(((Eckwerte!$D$7-Eckwerte!$D$8)/(Eckwerte!$D$9-Eckwerte!$D$10)*(Datenerfassung!$J$63-C87*F54-Eckwerte!$D$10)+Eckwerte!$D$8)<=Eckwerte!$D$8,Eckwerte!$D$8,IF(((Eckwerte!$D$7-Eckwerte!$D$8)/(Eckwerte!$D$9-Eckwerte!$D$10)*(Datenerfassung!$J$63-C87*F54-Eckwerte!$D$10)+Eckwerte!$D$8)>=Eckwerte!$D$7,Eckwerte!$D$7,((Eckwerte!$D$7-Eckwerte!$D$8)/(Eckwerte!$D$9-Eckwerte!$D$10)*(Datenerfassung!$J$63-C87*F54-Eckwerte!$D$10)+Eckwerte!$D$8)))","v":5.6040991452991458},5.6040991452991458,null,null,null,null,{"$f":"J69*J72","v":16.799999999999997}]
[null,null,5,{"$f":"IF(((Eckwerte!$D$7-Eckwerte!$D$8)/(Eckwerte!$D$9-Eckwerte!$D$10)*(Datenerfassung!$J$63-C88*F55-Eckwerte!$D$10)+Eckwerte!$D$8)<=Eckwerte!$D$8,Eckwerte!$D$8,IF(((Eckwerte!$D$7-Eckwerte!$D$8)/(Eckwerte!$D$9-Eckwerte!$D$10)*(Datenerfassung!$J$63-C88*F55-Eckwerte!$D$10)+Eckwerte!$D$8)>=Eckwerte!$D$7,Eckwerte!$D$7,((Eckwerte!$D$7-Eckwerte!$D$8)/(Eckwerte!$D$9-Eckwerte!$D$10)*(Datenerfassung!$J$63-C88*F55-Eckwerte!$D$10)+Eckwerte!$D$8)))","v":4.4721333333333328},0,null,null,{"$f":"H87/4","v":0}]
[null,null,6,{"$f":"IF(((Eckwerte!$D$7-Eckwerte!$D$8)/(Eckwerte!$D$9-Eckwerte!$D$10)*(Datenerfassung!$J$63-C89*$F$56-Eckwerte!$D$10)+Eckwerte!$D$8)<=Eckwerte!$D$8,Eckwerte!$D$8,IF(((Eckwerte!$D$7-Eckwerte!$D$8)/(Eckwerte!$D$9-Eckwerte!$D$10)*(Datenerfassung!$J$63-C89*$F$56-Eckwerte!$D$10)+Eckwerte!$D$8)>=Eckwerte!$D$7,Eckwerte!$D$7,((Eckwerte!$D$7-Eckwerte!$D$8)/(Eckwerte!$D$9-Eckwerte!$D$10)*(Datenerfassung!$J$63-C89*$F$56-Eckwerte!$D$10)+Eckwerte!$D$8)))","v":3.3195863247863246},0]
[null,null,7,{"$f":"IF(((Eckwerte!$D$7-Eckwerte!$D$8)/(Eckwerte!$D$9-Eckwerte!$D$10)*(Datenerfassung!$J$63-C90*$F$56-Eckwerte!$D$10)+Eckwerte!$D$8)<=Eckwerte!$D$8,Eckwerte!$D$8,IF(((Eckwerte!$D$7-Eckwerte!$D$8)/(Eckwerte!$D$9-Eckwerte!$D$10)*(Datenerfassung!$J$63-C90*$F$56-Eckwerte!$D$10)+Eckwerte!$D$8)>=Eckwerte!$D$7,Eckwerte!$D$7,((Eckwerte!$D$7-Eckwerte!$D$8)/(Eckwerte!$D$9-Eckwerte!$D$10)*(Datenerfassung!$J$63-C90*$F$56-Eckwerte!$D$10)+Eckwerte!$D$8)))","v":2.5272102564102563},0]
[null,null,8,{"$f":"IF(((Eckwerte!$D$7-Eckwerte!$D$8)/(Eckwerte!$D$9-Eckwerte!$D$10)*(Datenerfassung!$J$63-C91*$F$56-Eckwerte!$D$10)+Eckwerte!$D$8)<=Eckwerte!$D$8,Eckwerte!$D$8,IF(((Eckwerte!$D$7-Eckwerte!$D$8)/(Eckwerte!$D$9-Eckwerte!$D$10)*(Datenerfassung!$J$63-C91*$F$56-Eckwerte!$D$10)+Eckwerte!$D$8)>=Eckwerte!$D$7,Eckwerte!$D$7,((Eckwerte!$D$7-Eckwerte!$D$8)/(Eckwerte!$D$9-Eckwerte!$D$10)*(Datenerfassung!$J$63-C91*$F$56-Eckwerte!$D$10)+Eckwerte!$D$8)))","v":1.734834188034188},0]
[null,null,null,null,{"$f":"SUM(E85:E91)","v":5.6040991452991458}]

{"sheet":"Belegetext","index":4,"n_rows":10,"n_cols":2,"rows_kept":10,"cut":false,"hidden":false,"merged":[]}
[]
[null,"Belegtext, Bemerkungen"]
[null,"Zahlungsbedingungen: zahlbar innert 30 Tagen"]
[]
[]
[]
[]
[]
[]
[null,"Fusszeile Rechnung"]

{"sheet":"Rechnung","index":5,"n_rows":61,"n_cols":12,"rows_kept":61,"cut":false,"hidden":false,"merged":[[35,1,35,8],[17,1,17,2],[17,4,17,5]]}
[null,{"$f":"IF(Adresse!C7=\"\",\"\",Adresse!C7)","v":"Tagesschule Muster"}]
[null,{"$f":"IF(Adresse!C8=\"\",\"\",Adresse!C8)","v":"Finkenrain 12"}]
[null,{"$f":"IF(Adresse!C9=\"\",\"\",Adresse!C9)","v":"3013 Bern"}]
[]
[null,"Kontakt:"]
[null,{"$f":"IF(Adresse!C17=\"\",\"\",Adresse!C17)","v":"Elisabeth Adam"}]
[null,{"$f":"IF(Adresse!C18=\"\",\"\",Adresse!C18)","v":"Finkenrain 12"}]
[null,{"$f":"IF(Adresse!C19=\"\",\"\",Adresse!C19)","v":"3013 Bern"},null,null,null,null,null,{"$f":"Datenerfassung!E$3","v":"Familie"}]
[null,{"$f":"IF(Adresse!C20=\"\",\"\",Adresse!C20)","v":"031 000 00 00"},null,null,null,null,null,{"$f":"Datenerfassung!E$8","v":"Fränzi Muster"}]
[null,{"$f":"IF(Adresse!C21=\"\",\"\",Adresse!C21)","v":"xx@xx"},null,null,null,null,null,{"$f":"Datenerfassung!H$8","v":"Mustergasse 11"}]
[null,{"$f":"IF(Adresse!C22=\"\",\"\",Adresse!C22)","v":""},null,null,null,null,null,{"$f":"Datenerfassung!K$8","v":"3600 Thun"}]
[]
[]
[]
[]
[]
[null,"Rechnung",null,null,null,null,null,null,null,null,null,{"$f":"TODAY()","v":"2024-02-15"}]
[]
[]
[null,{"$f":" \"Gebührenabrechnung für \"&Datenerfassung!F6&\" \"&Datenerfassung!E6","v":"Gebührenabrechnung für  "}]
[null,"für die Periode vom",null,null,null,null,{"$f":"Datenerfassung!H19","v":"2024-01-08"},{"$f":"IF(G21=0,\"\",\"-\")","v":"-"},{"$f":"Datenerfassung!I19","v":"2024-01-30"}]
[]
[null,{"$f":"Datenerfassung!D22","v":"Anzahl Schulwochen in Abrechnungsperiode"},null,null,null,null,{"$f":"Datenerfassung!H22","v":3}]
[null,{"$f":"\"Anzahl \"&Datenerfassung!D18","v":"Anzahl Betreuungsstunden pro Woche"},null,null,null,null,{"$f":"Datenerfassung!H18","v":1}]
[null,"Abzug Betreuungsstunden infolge Schulausfällen",null,null,null,null,{"$f":"Datenerfassung!H21","v":0}]
[null,"Gesamttotal Betreuungsstunden",null,null,null,null,{"$f":"Datenerfassung!I18","v":3}]
[null,"Betreuungsgebühr pro Stunde",null,null,null,null,{"$f":"Datenerfassung!J69","v":5.6}]
[]
[null,"Gebühren für die Betreuung",null,null,null,{"$f":"\"\"","v":""},{"$f":"G26","v":3},"zu",{"$f":"G27","v":5.6},null,null,{"$f":"Datenerfassung!J73","v":16.8}]
[]
[null,"Anzahl Frühstück",null,null,null,null,{"$f":"IF(Datenerfassung!H16=0,\"\",Datenerfassung!H16*G23)","v":3},null,{"$f":"Datenerfassung!F16","v":1},null,null,{"$f":"IF(Datenerfassung!I16=\"\",\"\",Datenerfassung!I16*$G$23)","v":3}]
[null,"Anzahl Mittagessen",null,null,null,null,{"$f":"IF(Datenerfassung!H15=0,\"\",Datenerfassung!H15*G23)","v":3},null,{"$f":"Datenerfassung!F15","v":8},null,null,{"$f":"IF(Datenerfassung!I15=\"\",\"\",Datenerfassung!I15*$G$23)","v":24}]
[null,"Anzahl z'Vieri",null,null,null,null,{"$f":"IF(Datenerfassung!H17=0,\"\",Datenerfassung!H17*G23)","v":3},null,{"$f":"Datenerfassung!F17","v":1.5},null,null,{"$f":"IF(Datenerfassung!I17=\"\",\"\",Datenerfassung!I17*$G$23)","v":4.5}]
[]
[null,"Gebühren für die Verpflegung",null,null,null,null,null,null,null,null,null,{"$f":"Datenerfassung!J74","v":31.5}]
[]
[null,"Total Gebühren für die Abrechnungsperiode",null,null,null,null,null,null,null,null,null,{"$f":"Datenerfassung!J75+L36","v":48.3}]
[]
[]
[]
[]
[null,"Unterschrift der Mutter"]
[null,null,null,null,{"$f":"IF(Datenerfassung!H4=\"\",\"\",Datenerfassung!H4&\" \"&Datenerfassung!E4)","v":""}]
[]
[]
[null,"Unterschrift des Vaters"]
[null,null,null,null,{"$f":"IF(Datenerfassung!H5=\"\",\"\",Datenerfassung!H5&\" \"&Datenerfassung!E5)","v":""}]
[]
[]
[null,"Unterschrift der Leiterin"]
[null,{"$f":"Adresse!C7","v":"Tagesschule Muster"}]
[null,null,null,null,{"$f":"IF(Adresse!C13=\"\",\"\",Adresse!C13)","v":"Stefanie Küng"}]
[]
[]
[null,{"$f":"IF(Belegetext!B3=\"\",\"\",Belegetext!B3)","v":"Zahlungsbedingungen: zahlbar innert 30 Tagen"}]
[null,{"$f":"IF(Belegetext!B4=\"\",\"\",Belegetext!B4)","v":""}]
[null,{"$f":"IF(Belegetext!B5=\"\",\"\",Belegetext!B5)","v":""}]
[null,{"$f":"IF(Belegetext!B6=\"\",\"\",Belegetext!B6)","v":""}]
[null,{"$f":"IF(Belegetext!B7=\"\",\"\",Belegetext!B7)","v":""}]
[null,{"$f":"IF(Belegetext!B8=\"\",\"\",Belegetext!B8)","v":""}]
[null,{"$f":"Belegetext!B11","v":0}]

{"sheet":"Berechnung","index":6,"n_rows":76,"n_cols":6,"rows_kept":76,"cut":false,"hidden":false,"merged":[[30,1,30,5],[0,1,0,3],[1,1,1,3]]}
[null,{"$f":"Rechnung!B1","v":"Tagesschule Muster"}]
[null,{"$f":"Rechnung!B2","v":"Finkenrain 12"}]
[null,{"$f":"Rechnung!B3","v":"3013 Bern"}]
[]
[null,{"$f":"Rechnung!B5","v":"Kontakt:"}]
[null,{"$f":"Rechnung!B6","v":"Elisabeth Adam"}]
[null,{"$f":"Rechnung!B7","v":"Finkenrain 12"}]
[null,{"$f":"Rechnung!B8","v":"3013 Bern"}]
[null,{"$f":"Rechnung!B9","v":"031 000 00 00"}]
[null,{"$f":"Rechnung!B10","v":"xx@xx"}]
[]
[]
[]
[null,{"$f":"\"Berechnung Massgebendes Einkommen + Gebühren\"","v":"Berechnung Massgebendes Einkommen + Gebühren"},null,null,null,{"$f":"TODAY()","v":"2024-02-15"}]
[]
[]
[null,{"$f":"IF(Datenerfassung!E4=\"\",\"\",Datenerfassung!E4&\" \"&Datenerfassung!F4)","v":"Fränzi Muster "}]
[null,{"$f":"Datenerfassung!D26","v":"Nettolohn"},null,null,null,{"$f":"IF(Datenerfassung!H26=\"\",\"\",Datenerfassung!H26)","v":50000}]
[null,{"$f":"Datenerfassung!D27","v":"weitere steuerbare Einkünfte"},null,null,null,{"$f":"IF(Datenerfassung!H27=\"\",\"\",Datenerfassung!H27)","v":500}]
[null,{"$f":"Datenerfassung!D28","v":"Ersatzeinkommen"},null,null,null,{"$f":"IF(Datenerfassung!H28=\"\",\"\",Datenerfassung!H28)","v":600}]
[null,{"$f":"Datenerfassung!D29","v":"erhaltene Unterhaltsbeiträge"},null,null,null,{"$f":"IF(Datenerfassung!H29=\"\",\"\",Datenerfassung!H29)","v":700}]
[null,{"$f":"Datenerfassung!D30","v":"Geschäftsgewinn - Durchschnitt der letzten 3 Jahre"},null,null,null,{"$f":"IF(Datenerfassung!H30=\"\",\"\",Datenerfassung!H30)","v":800}]
[null,{"$f":"Datenerfassung!D31","v":"Bruttoerträge aus beweglichem und unbeweglichem Vermögen"},null,null,null,{"$f":"IF(Datenerfassung!H31=\"\",\"\",Datenerfassung!H31)","v":900}]
[null,{"$f":"Datenerfassung!D32","v":"Einkommen aus Erbengemeinschaften/Miteingentümerschaften"},null,null,null,{"$f":"IF(Datenerfassung!H32=\"\",\"\",Datenerfassung!H32)","v":1000}]
[null,{"$f":"Datenerfassung!D33","v":"Abzug für geleistete Unterhaltsbeiträge"},null,null,null,{"$f":"IF(Datenerfassung!H33=\"\",\"\",Datenerfassung!H33)","v":1100}]
[null,{"$f":"Datenerfassung!D34","v":"Schuldzinsen (Zinsen)"},null,null,null,{"$f":"IF(Datenerfassung!H34=\"\",\"\",Datenerfassung!H34)","v":1200}]
[null,{"$f":"Datenerfassung!D35","v":"Kosten für die Wertschriftenverwaltung und Grundstückskosten"},null,null,null,{"$f":"IF(Datenerfassung!H35=\"\",\"\",Datenerfassung!H35)","v":1300}]
[]
[null,"Einkommen Antragsteller/in I",null,null,null,{"$f":"Datenerfassung!H43","v":50900}]
[]
[null,{"$f":"IF(Datenerfassung!E5=\"\",\"\",Datenerfassung!E5&\" \"&Datenerfassung!F5)","v":"Hans Muster "}]
[null,{"$f":"Datenerfassung!D26","v":"Nettolohn"},null,null,null,{"$f":"IF(Datenerfassung!I26=\"\",\"\",Datenerfassung!I26)","v":60000}]
[null,{"$f":"Datenerfassung!D27","v":"weitere steuerbare Einkünfte"},null,null,null,{"$f":"IF(Datenerfassung!I27=\"\",\"\",Datenerfassung!I27)","v":50}]
[null,{"$f":"Datenerfassung!D28","v":"Ersatzeinkommen"},null,null,null,{"$f":"IF(Datenerfassung!I28=\"\",\"\",Datenerfassung!I28)","v":60}]
[null,{"$f":"Datenerfassung!D29","v":"erhaltene Unterhaltsbeiträge"},null,null,null,{"$f":"IF(Datenerfassung!I29=\"\",\"\",Datenerfassung!I29)","v":70}]
[null,{"$f":"Datenerfassung!D30","v":"Geschäftsgewinn - Durchschnitt der letzten 3 Jahre"},null,null,null,{"$f":"IF(Datenerfassung!I30=\"\",\"\",Datenerfassung!I30)","v":80}]
[null,{"$f":"Datenerfassung!D31","v":"Bruttoerträge aus beweglichem und unbeweglichem Vermögen"},null,null,null,{"$f":"IF(Datenerfassung!I31=\"\",\"\",Datenerfassung!I31)","v":90}]
[null,{"$f":"Datenerfassung!D32","v":"Einkommen aus Erbengemeinschaften/Miteingentümerschaften"},null,null,null,{"$f":"IF(Datenerfassung!I32=\"\",\"\",Datenerfassung!I32)","v":100}]
[null,{"$f":"Datenerfassung!D33","v":"Abzug für geleistete Unterhaltsbeiträge"},null,null,null,{"$f":"IF(Datenerfassung!I33=\"\",\"\",Datenerfassung!I33)","v":110}]
[null,{"$f":"Datenerfassung!D34","v":"Schuldzinsen (Zinsen)"},null,null,null,{"$f":"IF(Datenerfassung!I34=\"\",\"\",Datenerfassung!I34)","v":120}]
[null,{"$f":"Datenerfassung!D35","v":"Kosten für die Wertschriftenverwaltung und Grundstückskosten"},null,null,null,{"$f":"IF(Datenerfassung!I35=\"\",\"\",Datenerfassung!I35)","v":130}]
[]
[null,"Einkommen Antragsteller/in II",null,null,null,{"$f":"Datenerfassung!I43","v":60090}]
[]
[null,"Anrechenbarer Vermögensanteil",null,null,null,{"$f":"Datenerfassung!H48+Datenerfassung!I48","v":2500}]
[]
[]
[null,{"$f":"Datenerfassung!D63","v":"Zwischentotal (Einkünfte und Vermögen)"},null,null,null,{"$f":"Datenerfassung!J63","v":113490}]
[]
[null,{"$f":"Datenerfassung!D64","v":"Abzüge für Familiengrösse"},null,null,null,{"$f":"Datenerfassung!J64","v":24000}]
[]
[null,{"$f":"Datenerfassung!D65","v":"Massgebendes Einkommen"},null,null,null,{"$f":"Datenerfassung!J65","v":89490}]
[null,null,"Einkommen pro Monat ",null,null,{"$f":"Datenerfassung!J66","v":0}]
[]
[null,{"$f":"Datenerfassung!D69","v":"Gebühr pro Stunde"},null,null,null,{"$f":"Datenerfassung!J69","v":5.6}]
[]
[null,null,null,null,null,{"$f":"IF(F29=\"\",0,F29)","v":50900}]
[null,null,null,null,null,{"$f":"IF(F43=\"\",0,F43)","v":60090}]
[]
[null,{"$f":"\"Anzahl Betreuungsstunden in \"&Datenerfassung!H22&\" Wochen\"","v":"Anzahl Betreuungsstunden in 3 Wochen"},null,null,{"$f":"Datenerfassung!I18","v":3}]
[]
[null,{"$f":"\"Betreuungsgebühr für \"&Datenerfassung!H22&\" Wochen \"","v":"Betreuungsgebühr für 3 Wochen "},null,null,null,{"$f":"Datenerfassung!J73","v":16.8}]
[null,{"$f":"\"Kosten Mahlzeiten für \"&Datenerfassung!H22&\" Wochen\"","v":"Kosten Mahlzeiten für 3 Wochen"},null,null,null,{"$f":"Datenerfassung!J74","v":31.5}]
[null,{"$f":"\"Total Gebühren für \"&Datenerfassung!H22&\" Wochen\"","v":"Total Gebühren für 3 Wochen"},null,null,null,{"$f":"Datenerfassung!J75","v":48.3}]
[]
[null,{"$f":"Datenerfassung!D75","v":"Betreuungs- und Mahlzeitengebühren für Abrechnungsperiode "},null,null,null,{"$f":"Datenerfassung!J75","v":48.3}]
[]
[null,{"$f":"Datenerfassung!D70","v":"Maximaltarif"},null,null,null,{"$f":"Eckwerte!D7","v":12.86}]
[]
[null,{"$f":"Datenerfassung!D71","v":"Subvention Kanton und Gemeinde pro Betreuungsstunde"},null,null,null,{"$f":"F68-F55","v":7.26}]
[]
[]
[null,{"$f":"Datenerfassung!D78","v":0}]
[null,{"$f":"Datenerfassung!D79","v":0}]
[null,{"$f":"Datenerfassung!D80","v":0}]
[null,{"$f":"Datenerfassung!D81","v":0}]